Cogmind - Beta 12 *** ADVENTURER MODE // 2024.01.04 @ 17:56:24 Player: martinuzz Result: Destroyed by as-18985 with Assembled Heavy Rifle Performance ------------- Evolutions (0) 0 Regions Visited (3) 600 Robots Destroyed (23) 115 Value Destroyed (332) 332 Prototype IDs (5) 100 Alien Tech Used (0) 0 Bonus (0) 0 TOTAL SCORE: 1147 Bonus ------- None Cogmind --------- Core Integrity 0/250 Matter 242/300 Energy 86/100 System Corruption 1% Temperature Cool (9) Movement Treading (160) Location -10/Exiles Parts ------- > --- POWER (1) -------- (None) > --- PROPULSION (2) --- Light Treads Light Treads > --- UTILITY (2) ------ Large Storage Unit Signal Interpreter > --- WEAPON (2) ------- Improved Medium Laser Heavy Assault Rifle > --- INVENTORY (15) --- Light Fission Core Light Treads Light Treads Light Treads High-capacity Matter Pod (200) Sensor Array Improved Terrain Scanner Improved Medium Laser Heavy Assault Rifle Rocket Launcher Mining Laser Peak State ------------ > --- POWER ------------ Light Ion Engine > --- PROPULSION ------- Light Treads Light Treads > --- UTILITY ---------- Large Storage Unit Signal Interpreter > --- WEAPON ----------- Improved Medium Laser Heavy Assault Rifle > --- INVENTORY -------- Light Ion Engine Light Treads Aluminum Leg Aluminum Leg High-capacity Matter Pod Sensor Array Improved Terrain Scanner Particle Gun Light Assault Rifle Heavy Assault Rifle Heavy Assault Rifle Heavy Assault Rifle Grenade Launcher Rocket Launcher Mining Laser [Rating: 12] Favorites ----------- Power Light Ion Engine Engine Light Ion Engine Propulsion Light Treads Treads Light Treads Leg Aluminum Leg Utility Large Storage Unit Device Improved Terrain Scanner Storage Large Storage Unit Processor Signal Interpreter Weapon Heavy Assault Rifle Energy Gun Improved Medium Laser Ballistic Gun Heavy Assault Rifle Build | -11 -10 -10 -10 ------- Run | Jun Mat Min Exi Slots Evolved . | . . . . Power . | . . . . Propulsion . | . . . . Utility . | . . . . Weapon . | . . . . Parts Attached 24 | 7 12 . 5 Power 3 | 1 1 . 1 Engine 3 | 1 1 . 1 Core . | . . . . Reactor . | . . . . Propulsion 9 | 2 5 . 2 Treads 8 | 2 4 . 2 Leg 1 | . 1 . . Wheel . | . . . . Hover . | . . . . Flight . | . . . . Utility 4 | 2 2 . . Device 1 | 1 . . . Storage 2 | 1 1 . . Processor 1 | . 1 . . Hackware . | . . . . Protection . | . . . . Artifact . | . . . . Weapon 8 | 2 4 . 2 Energy Gun 5 | 1 3 . 1 Energy Cannon . | . . . . Ballistic Gun 3 | 1 1 . 1 Ballistic Cannon . | . . . . Launcher . | . . . . Special Weapon . | . . . . Impact Weapon . | . . . . Slashing Weapon . | . . . . Piercing Weapon . | . . . . Special Melee Weapon . | . . . . Unidentified Prototypes . | . . . . Parts Lost 6 | . 1 . 5 Power 3 | . 1 . 2 Propulsion 1 | . . . 1 Utility . | . . . . Weapon 2 | . . . 2 Highest Loss Streak 5 | . 1 . 5 To Critical Strikes 1 | . . . 1 Average Slot Usage (%) 99 | . 99 100 97 Engine 13 | . 14 14 11 Treads 27 | . 27 28 28 Device 1 | . 1 . . Storage 14 | . 14 14 14 Processor 12 | . 12 14 14 Energy Gun 13 | . 13 14 14 Ballistic Gun 14 | . 14 14 14 Naked Turns . | . . . . Heaviest Build 29 | 13 29 29 29 Greatest Support 40 | 40 40 40 40 Greatest Overweight (x) . | . . . . Average Overweight (x) . | . . . . Largest Inventory Capacity 15 | 8 15 15 15 Average Capacity 14 | 7 14 15 15 Most Carried 15 | 5 15 15 15 Average Carried 11 | 3 10 15 14 Final Capacity 15 | 8 15 15 15 Final Carried 15 | 4 15 15 11 Class Distribution -------------------- 98% | Mutant Dominant Class ---------------- Mutant | -10/Materials Mutant | -10/Mines Mutant | -10/Exiles Resources | -11 -10 -10 -10 ----------- Run | Jun Mat Min Exi Matter Collected 669 | 275 382 12 . Remotely . | . . . . Salvage Created 872 | 70 701 55 46 Parts 52 | 7 39 6 . Haulers Intercepted 2 | . 2 . . Recyclers Shooed 3 | . 3 . . Parts Field Recycled . | . . . . Retrieved Matter . | . . . . Parts Self-Destructed . | . . . . Prevented . | . . . . Kills | -11 -10 -10 -10 ------- Run | Jun Mat Min Exi Combat Hostiles Destroyed 16 | . 10 3 3 Guns 16 | . 10 3 3 Classes Destroyed 7 | 2 4 . 1 Tunneler 1 | 1 . . . Hauler 2 | . 2 . . Recycler 4 | 1 3 . . Watcher 3 | . 3 . . Swarmer 9 | . 6 3 . Grunt 4 | . 4 . . Assembled 3 | . . . 3 Best Kill Streak 3 | 1 3 3 3 Combat Bots Only 3 | . 3 3 3 Max Kills in Single Turn 1 | 1 1 1 1 Gunslinging . | . . . . Exploded . | . . . . Melee . | . . . . Uniques/NPCs Destroyed . | . . . . Combat | -11 -10 -10 -10 -------- Run | Jun Mat Min Exi Damage Taken 1270 | . 330 12 928 Core 258 | . 62 8 188 Absorbed by Shields . | . . . . Regen/Repaired (Parts) 199 | . 199 . . Core Remaining (%) 100 | 100 . . . Volleys Fired 72 | 5 53 4 10 Largest 2 | 2 2 2 2 Hottest 85 | 60 85 79 79 Shots Fired 145 | 10 106 8 21 Gun 145 | 10 106 8 21 Cannon . | . . . . Launcher . | . . . . Special . | . . . . Kinetic 73 | 5 53 4 11 Thermal 72 | 5 53 4 10 Explosive . | . . . . Electromagnetic . | . . . . Robot Hit Streak 28 | 8 28 4 8 Robot Miss Streak 3 | . 3 1 3 Penetration Max . | . . . . Secondary Targets 5 | . 3 . 2 Max Gunslinging Chain 1 | . 1 . 1 Shots Hit Robots 110 | 8 83 5 14 Core Hits 41 | 4 29 3 5 Critical Kills . | . . . . Critical Parts Destroyed . | . . . . Critical Strikes 1 | . . 1 . Burn 1 | . . 1 . Melee Attacks . | . . . . Impact . | . . . . Slashing . | . . . . Piercing . | . . . . Sneak Attacks . | . . . . Combat Hostiles . | . . . . Follow-up Attacks . | . . . . Damage Inflicted 1264 | 80 892 83 209 Guns 1264 | 80 892 83 209 Cannons . | . . . . Explosions . | . . . . Melee . | . . . . Ramming . | . . . . Kinetic 536 | 24 375 49 88 Thermal 728 | 56 517 34 121 Explosive . | . . . . Electromagnetic . | . . . . Impact . | . . . . Slashing . | . . . . Piercing . | . . . . Highest Corruption 1 | . 1 1 1 Average Corruption 1 | . 1 1 1 Corruption Purged . | . . . . Corruption Blocked . | . . . . Effects 3 | . . 2 1 Message Errors 1 | . . 1 . Data Loss (minor) 1 | . . 1 . Misfires 1 | . . . 1 Overload Shots . | . . . . Overflow Damage . | . . . . Projectiles . | . . . . Explosions . | . . . . Melee . | . . . . Knockbacks . | . . . . Impact . | . . . . Kinetic . | . . . . Secondary . | . . . . Self-Inflicted Damage . | . . . . Shots . | . . . . Rammed . | . . . . Targets Rammed . | . . . . Kicked . | . . . . Crushed . | . . . . Highest Temperature 104 | 20 104 72 69 Average Temperature 26 | 12 25 38 36 Received Heat Transfer 138 | . 138 . . Siege Activations . | . . . . Robots Corrupted . | . . . . Combat Hostiles . | . . . . Parts Fried . | . . . . Impact Corruptions . | . . . . Robots Melted . | . . . . Combat Hostiles . | . . . . Parts Melted . | . . . . Heat Transferred 1691 | 125 1159 148 259 Parts Sabotaged . | . . . . Parts Stolen . | . . . . Parts Stripped . | . . . . Power Chain Reactions . | . . . . Missiles Intercepted . | . . . . Alert | -11 -10 -10 -10 ------- Run | Jun Mat Min Exi Peak Influence 191 | 10 191 77 . Initial 5 | . 5 . . Average 53 | 4 57 57 . Maximum Alert Level . | . . . . Low Security (%) 100 | 100 100 100 . Level 1 . | . . . . Level 2 . | . . . . Level 3 . | . . . . Level 4 . | . . . . Level 5 . | . . . . High Security . | . . . . Max Security . | . . . . Squads Dispatched 1 | . 1 . . Investigation 1 | . 1 . . Extermination . | . . . . Reinforcement . | . . . . Assault . | . . . . Garrison . | . . . . Intercept . | . . . . Searches Triggered . | . . . . Construction Impeded . | . . . . Haulers Reinforced . | . . . . Active Scanning Responses . | . . . . Cargo Convoy Interrupts . | . . . . Stealth | -11 -10 -10 -10 --------- Run | Jun Mat Min Exi Distress Signals 2 | . 2 . . Communications Jammed . | . . . . Distress Signals . | . . . . Times Spotted 26 | . 15 3 8 Peak Tracking Total 9 | . 4 3 9 Tactical Retreats 1 | . 1 . . Traps | -11 -10 -10 -10 ------- Run | Jun Mat Min Exi Traps Triggered 6 | . 6 . . Indirectly . | . . . . Trap Hack Attempts . | . . . . Triggered . | . . . . Disarmed . | . . . . Reprogrammed 3 | . 3 . . Reused . | . . . . Traps Extracted . | . . . . Installed . | . . . . Triggered . | . . . . Machines | -11 -10 -10 -10 ---------- Run | Jun Mat Min Exi Machines Disabled 4 | . 1 . 3 Max in Single Turn 1 | . 1 . 1 Machines Repaired . | . . . . Machines Sabotaged . | . . . . Overloaded Fab Kills . | . . . . Hacking | -11 -10 -10 -10 --------- Run | Jun Mat Min Exi Machines Accessed 11 | . 9 2 . Terminals 9 | . 7 2 . Fabricators . | . . . . Repair Stations 1 | . 1 . . Recycling Units 1 | . 1 . . Scanalyzers . | . . . . Garrison Access . | . . . . Total Hacks 44 | . 37 7 . Successful 27 | . 22 5 . Failed 17 | . 15 2 . Catastrophic 2 | . 2 . . Database Lockouts . | . . . . Manual . | . . . . Terminals 30 | . 23 7 . Fabricators . | . . . . Repair Stations 12 | . 12 . . Recycling Units 2 | . 2 . . Scanalyzers . | . . . . Garrison Access . | . . . . Terminal Hacks 16 | . 11 5 . Record 3 | . 1 2 . Prototype ID Bank 3 | . 3 . . Alert Level 1 | . 1 . . Locate Traps 1 | . 1 . . Reprogram Traps 1 | . 1 . . Dispatch Records 1 | . . 1 . Transport Status 2 | . 2 . . Hauler Manifests 1 | . 1 . . Zone Layout 3 | . 1 2 . Fabricator Hacks . | . . . . Repair Station Hacks 10 | . 10 . . Scan Component 5 | . 5 . . Repair 5 | . 5 . . Recycling Unit Hacks 1 | . 1 . . Retrieve Components 1 | . 1 . . Scanalyzer . | . . . . Garrison Access Hacks . | . . . . Unauthorized Hacks . | . . . . Terminals . | . . . . Fabricators . | . . . . Repair Stations . | . . . . Recycling Units . | . . . . Scanalyzers . | . . . . Garrison Access . | . . . . Data Cores Recovered . | . . . . Used . | . . . . Hacking Detections 8 | . 7 1 . Full Trace Events 2 | . 1 1 . Feedback Events . | . . . . Feedback Blocked . | . . . . Robot Schematics Acquired . | . . . . Robots Built . | . . . . Authchips . | . . . . Time . | . . . . Total Robot Build Rating . | . . . . Part Schematics Acquired . | . . . . Parts Built . | . . . . Authchips . | . . . . Time . | . . . . Total Part Build Rating . | . . . . Parts Repaired 5 | . 5 . . Time 136 | . 136 . . Parts Recycled . | . . . . Recycled Matter . | . . . . Retrieved Matter . | . . . . Retrieved Components 7 | . 7 . . Parts Scanalyzed . | . . . . Part Schematics Acquired . | . . . . Parts Damaged . | . . . . Bothacking | -11 -10 -10 -10 ------------ Run | Jun Mat Min Exi Used RIF Installer . | . . . . Robots Hacked . | . . . . Non-combat . | . . . . Combat . | . . . . Robot Hacks Applied . | . . . . Relay Couplers Released . | . . . . Fabnet Peak Effective % . | . . . . Robots Rewired . | . . . . Allies Hacked . | . . . . Hacks Repelled . | . . . . Allies | -11 -10 -10 -10 -------- Run | Jun Mat Min Exi Total Allies 2 | . . 2 . Largest Group 2 | . . 2 2 Highest-Rated Group 42 | . . 42 42 Highest-Rated Ally 31 | . . 31 31 Total Orders . | . . . . Ally Attacks . | . . . . Total Damage . | . . . . Kills . | . . . . Allies Corrupted . | . . . . Allies Melted . | . . . . Intel | -11 -10 -10 -10 ------- Run | Jun Mat Min Exi Robot Analysis Total . | . . . . Derelict Logs Recovered 2 | . . 2 . Drone Launches . | . . . . Drone Recoveries . | . . . . Exploration | -11 -10 -10 -10 ------------- Run | Jun Mat Min Exi Turns Passed 2430 | 163 1637 505 125 Spaces Moved 1239 | 91 809 292 47 Core 13 | 13 . . . Treads 1226 | 78 809 292 47 Legs . | . . . . Wheels . | . . . . Hover . | . . . . Flight . | . . . . Fastest Speed 50 | 50 160 160 160 Average Speed 158 | 144 160 160 160 Slowest Speed 160 | 160 160 160 160 Overloaded Moves . | . . . . Propulsion Burnouts . | . . . . Robots Hopped . | . . . . Cave-ins Triggered . | . . . . Exploration Rate (%) 46 | 5 95 67 17 Regions Visited 3 Branch Regions 2 Pre-discovered Areas 1 | . . 1 . Known Exits Taken 2 | . 1 1 . Unknown Exits Taken 1 | 1 . . . Scrap Searched . | . . . . Spaces Dug . | . . . . Terrain Destroyed . | . . . . Melee . | . . . . Projectile . | . . . . AOE . | . . . . Terrain Rammed . | . . . . Walls Destroyed . | . . . . Machines Disabled . | . . . . Actions | -11 -10 -10 -10 --------- Run | Jun Mat Min Exi Total 1570 | 114 1055 322 79 Wait 188 | 1 145 27 15 Move 1236 | 90 808 291 47 Hop . | . . . . Pick Up 39 | 11 27 . 1 Fast Attach . | . . . . Attach 14 | 7 3 . 4 Detach . | . . . . Swap 10 | . 9 . 1 Drop 11 | . 10 . 1 Fire 72 | 5 53 4 10 Melee . | . . . . Ram . | . . . . Kick . | . . . . Crush . | . . . . Escape Stasis . | . . . . Rewire . | . . . . Trap . | . . . . Miscellaneous . | . . . . Route ------- -11/Junkyard -10/Materials (discovered 5 exits: *Mat x3 / *Min x2) -10/Mines (discovered 3 exits: *Mat x2 / *Exi) -10/Exiles History --------- Turn | Location | Event 8 | -11/Junkyard | Discovered new exit (range 15) 164 | -11/Junkyard | Entered Materials 310 | -10/Materials | Build established: Mutant 326 | -10/Materials | Discovered new exit (range 8) 400 | -10/Materials | Identified exit to Materials 812 | -10/Materials | Repaired Lgt. Treads 840 | -10/Materials | Repaired Lgt. Treads 869 | -10/Materials | Repaired Lgt. Treads 912 | -10/Materials | Repaired Lgt. Treads 945 | -10/Materials | Repaired Particle Gun 1043 | -10/Materials | Discovered new exit (range 13) 1084 | -10/Materials | Identified exit to Mines 1142 | -10/Materials | Discovered exit to Materials (range 14) 1275 | -10/Materials | Discovered exit to Mines (range 5) 1385 | -10/Materials | Discovered exit to Materials (range 15) 1801 | -10/Materials | Entered Mines 1930 | -10/Mines | Learned location of Storage (-9) 2028 | -10/Mines | Discovered exit to Materials (range 5) 2286 | -10/Mines | Deemed a non-threat by the Exiles lab entrance 2288 | -10/Mines | Discovered new exit (range 5) 2292 | -10/Mines | Identified exit to Exiles 2306 | -10/Mines | Entered Exiles 2306 | -10/Exiles | Accompanied by 2 allies 2336 | -10/Exiles | Led the pair of lost Derelicts to a safe place 2364 | -10/Exiles | Met 8R-AWN 2388 | -10/Exiles | Met EX-HEX 2395 | -10/Exiles | Attacked by the Exiles 2413 | -10/Exiles | Core integrity fell below 50% 2421 | -10/Exiles | Core integrity fell below 20% 2431 | -10/Exiles | Destroyed by as-18985 with Assembled Heavy Rifle Last Messages --------------- 02404_ Lgt. Ion Engine destroyed. 02405_ as-01319 destroyed. 02408_ Penetrated by HV Slug. 02408_ as-50310 destroyed. 02408_ Switching to secondary target: 8R-AWN. 02411_ HV Slug penetrates Machine. 02411_ HV Slug penetrates Wall. 02411_ Machine disabled. 02413_ HV Slug penetrates Wall. 02414_ Critical hit (Destroy). 02414_ Hvy. Assault Rifle destroyed. 02414_ Imp. Medium Laser destroyed. 02415_ Penetrated by HV Slug. 02416_ Lgt. Treads destroyed. 02417_ Machine disabled. 02418_ Penetrated by HV Slug. 02422_ Lgt. Ion Engine destroyed. 02428_ as-66029 destroyed. 02428_ Switching to secondary target: 8R-AWN. 02428_ Penetrated by HV Slug. Map ----- +----------------------------------------------------+ | ?????????????????????????????????????????????????? | | ?????????????????????????????????????????????????? | | ?????????????????????????????????????????????????? | | ?????????????????????????????????????????????????? | | ?????????????????????????????????????????????????? | | ?????????????????????????????????????????????????? | | ?????????????????????????????????????????????????? | | ?????????????????????????????????????????????????? | | ?????????????????????????????????????????????????? | | ?????????????????????????????????????????????????? | | ?????????????????????????????????????????????????? | | ?????????????????????????????????????????????????? | | ?????????????????????????????????????????????????? | | ?????????????????????????????????????????????????? | | ?????????????????????????????????????????????????? | | ?????????????? ?????????????????????????????????? | | ?????????????" "??????????????????????????????? | | ????????????? "a?????????????#####???????????? | | ???????????? " "#??????????##" #???????????? | | ???????????? ""##????????#" #???????????? | | ???????????? """???????## ##??????????? | | ??????????? "?????### ###????????# | | ??????????? ##???# ########## | | ?????????? ##?## #""""## | | ?????????? ##;g = | | ?????????? @ ## * | | ????????? #### | | ????????? % ""#?#"""""#### | | ????????? %% ;"""##?#######??#### | | ????????? % ######??????????????### | | ????????? a ##?????????????????????? | | ?????????? " a ##??????????????????????? | | ???????????? """ a "#???????????????????????? | | ??????????????# "##???????????????????????? | | ??????????????##"""" #?????????????????????????? | | ???????????????########??????????????????????????? | | ?????????????????????????????????????????????????? | | ?????????????????????????????????????????????????? | | ?????????????????????????????????????????????????? | | ?????????????????????????????????????????????????? | | ?????????????????????????????????????????????????? | | ?????????????????????????????????????????????????? | | ?????????????????????????????????????????????????? | | ?????????????????????????????????????????????????? | | ?????????????????????????????????????????????????? | | ?????????????????????????????????????????????????? | | ?????????????????????????????????????????????????? | | ?????????????????????????????????????????????????? | | ?????????????????????????????????????????????????? | | ?????????????????????????????????????????????????? | +----------------------------------------------------+ Best States ------------- Heat Dissipation 25 Energy Generation 10 Energy Capacity 250 Matter Stores 300 Matter Capacity 300 Sight Range 16 Terrain Scan Range 16 Terrain Scan Density 10 Resistance: KI 20 Resistance: TH 20 Resistance: EX 20 Resistance: EM 20 Resistance: I 20 Resistance: S 20 Resistance: P 20 Evasion (%) 50 Recoil Reduction 2 Offensive Hacking 10 Item Schematics ----------------- None Robot Schematics ------------------ None Fabricated ------------ Nothing Alien Tech Used ----------------- None Achievements -------------- None Challenges ------------ None Game ------ Seed 11235813 Manual? 1 Play Time 00:27:05 Cumulative 25.1 hours Start 2024.01.04 @ 17:29:14 End 2024.01.04 @ 17:56:24 Sessions 1 Manual Loads 0 Difficulty Adventurer Special Mode None Game No. 10 Rogue 0 Adventurer 10 Explorer 0 Win Type - Total 0 Types 0/0/0/0/0/0/0/0/0 Lore% 14 Gallery% 24 Achievement% 24 Wizard Run 0 Options --------- ASCII 0 Keyboard 0 Movement Mouse Keybinds 0 Fullscreen 1 Font 18/TerminusBold Map View 76x50 Tactical HUD 1 Map Filters NONE Filters NONE Steam 1 RUN: f88af3c8-e552-4f00-a3ca-cb4e6937e926